bitfinex/quotes_BTCUSD_20260310
["timestamp","ask_amount","ask_price","bid_price","bid_amount"]
[1773101018776,0.03,68494.0,68486.0,0.07300762]
[1773101019654,0.07299452,68499.0,68486.0,0.07300762]
[1773101019655,0.00148,68507.0,68488.0,0.13891016]
[1773101019858,0.00148,68506.0,68491.0,0.02454231]
[1773101020059,0.00148,68506.0,68491.0,0.02602231]
[1773101020060,0.03148,68506.0,68491.0,0.02602231]
[1773101020410,0.05413132,68506.0,68491.0,0.02602231]
[1773101020799,0.05265132,68504.0,68492.0,0.07300122]
[1773101021195,0.03,68502.0,68492.0,0.07300122]
[1773101022078,0.03,68502.0,68492.0,0.07400122]
[1773101023169,0.03,68502.0,68492.0,0.07300122]
[1773101024675,0.03,68505.0,68492.0,0.07300122]
[1773101024877,0.10298812,68505.0,68492.0,0.07300122]
[1773101025056,0.03,68503.0,68492.0,0.07300122]
[1773101025483,0.07298737,68507.0,68492.0,0.07300122]
[1773101025484,0.07297352,68518.0,68494.0,0.02454231]
[1773101025735,0.02265132,68516.0,68500.0,0.05685099]
[1773101026116,0.21215757,68518.0,68500.0,0.05685099]
[1773101026117,0.03148,68515.0,68506.0,0.05685099]
[1773101026316,0.03148,68515.0,68506.0,0.0813933]
[1773101026947,0.03,68515.0,68507.0,0.02403239]
[1773101027152,0.00022001,68522.0,68510.0,0.07298204]
[1773101027306,0.00022001,68522.0,68513.0,0.0232561]
[1773101028311,0.00022001,68522.0,68515.0,0.0232561]
[1773101028707,0.00022001,68526.0,68515.0,0.0232561]
[1773101028907,0.02155559,68538.0,68518.0,0.14035812]
[1773101029113,0.03,68538.0,68523.0,0.0232561]
[1773101029360,0.03,68538.0,68525.0,0.0232561]
[1773101029561,0.03,68536.0,68524.0,0.00148]
[1773101030161,0.03,68536.0,68524.0,0.0247361]
[1773101030531,0.22328048,68539.0,68524.0,0.0247361]
[1773101030532,0.03,68535.0,68524.0,0.0247361]
[1773101031129,0.03,68535.0,68526.0,0.072965]
[1773101031334,0.03,68535.0,68527.0,0.0232561]
[1773101031558,0.03,68534.0,68527.0,0.0232561]
[1773101032562,0.03,68537.0,68526.0,0.072965]
[1773101032761,0.03,68537.0,68520.0,0.31079057]
[1773101032762,0.17040401,68536.0,68507.0,0.24092422]
[1773101032963,0.03,68529.0,68505.0,0.0232561]
[1773101033192,0.03,68519.0,68506.0,0.0729863]
[1773101033389,0.03,68519.0,68506.0,0.0744663]
[1773101033593,0.05155559,68517.0,68506.0,0.00148]
[1773101034596,0.03,68516.0,68506.0,0.00148]
[1773101035082,0.03,68516.0,68506.0,0.0247361]
[1773101035281,0.03,68516.0,68507.0,0.07298524]
[1773101036528,0.03,68516.0,68507.0,0.07398524]
[1773101036953,0.03,68516.0,68507.0,0.07298524]
[1773101037149,0.10445368,68518.0,68507.0,0.07298524]
[1773101037454,0.03,68515.0,68507.0,0.07298524]
[1773101037807,0.03,68515.0,68508.0,0.0232561]
[1773101038215,0.03,68514.0,68508.0,0.0232561]
[1773101039034,0.03,68514.0,68507.0,0.001]
[1773101039269,0.17884842,68514.0,68506.0,0.07298604]
[1773101039479,0.03,68512.0,68508.0,0.001]
[1773101039786,0.03,68512.0,68508.0,0.07398384]
[1773101039983,0.07297478,68517.0,68508.0,0.07298384]
[1773101040548,0.03,68516.0,68508.0,0.07298384]
[1773101041395,0.03,68515.0,68508.0,0.07298384]
[1773101041778,0.03,68515.0,68507.0,0.07298482]
[1773101042380,0.03148,68518.0,68507.0,0.07298482]
[1773101042604,0.10445418,68518.0,68507.0,0.07298482]
[1773101043009,0.03148,68518.0,68507.0,0.09624092]
[1773101043209,0.03148,68518.0,68508.0,0.0232561]
[1773101043546,0.10445372,68518.0,68508.0,0.0232561]
[1773101044053,0.05155559,68514.0,68504.0,0.07321487]
[1773101047051,0.03,68514.0,68504.0,0.07321487]
[1773101047609,0.10297821,68514.0,68504.0,0.07321487]
[1773101048890,0.10297821,68514.0,68504.0,0.07421487]
[1773101049091,0.03,68514.0,68504.0,0.07421487]
[1773101049292,0.10297821,68514.0,68504.0,0.07321487]
[1773101049537,0.10297821,68514.0,68502.0,0.07298989]
[1773101049764,0.03,68506.0,68499.0,0.0002]
[1773101049954,0.03,68506.0,68499.0,0.07319353]
[1773101050733,0.00148,68507.0,68499.0,0.07319353]
[1773101050960,0.03,68506.0,68499.0,0.0002]
[1773101051456,0.03,68506.0,68499.0,0.02154516]
[1773101052022,0.03148,68511.0,68499.0,0.02154516]
[1773101052536,0.00148,68510.0,68499.0,0.02154516]
[1773101053054,0.00148,68510.0,68500.0,0.0729927]
[1773101053055,0.03,68509.0,68500.0,0.0729927]
[1773101054094,0.03,68509.0,68499.0,0.07419271]
[1773101054215,0.05200309,68509.0,68499.0,0.07419271]
[1773101054562,0.05200309,68509.0,68499.0,0.07319271]
[1773101054791,0.03,68505.0,68485.0,0.02134516]
[1773101054948,0.02200309,68500.0,68485.0,0.07448846]
[1773101055149,0.03,68497.0,68486.0,0.00148]
[1773101057066,0.03,68496.0,68487.0,0.07300655]
[1773101057314,0.03,68496.0,68487.0,0.09435171]
[1773101058069,0.03,68497.0,68487.0,0.09435171]
[1773101058404,0.03,68497.0,68487.0,0.07300655]
[1773101058603,0.03,68495.0,68487.0,0.07300655]
[1773101059266,0.03,68495.0,68492.0,0.0002]
[1773101059864,0.03,68491.0,68484.0,0.07320655]
[1773101060205,0.03,68491.0,68485.0,0.0730083]
[1773101060769,0.00148,68502.0,68488.0,0.02134516]
[1773101060970,0.03,68505.0,68490.0,0.02134516]
[1773101061244,0.03148,68502.0,68492.0,0.02134516]
[1773101061936,0.1044707,68502.0,68492.0,0.02134516]
[1773101063071,0.03148,68502.0,68492.0,0.02134516]
[1773101063188,0.00148,68504.0,68495.0,0.02134516]
[1773101063598,0.02200309,68513.0,68495.0,0.02134516]
[1773101063803,0.00148,68512.0,68495.0,0.02134516]
[1773101064354,0.00148,68511.0,68496.0,0.02134516]
[1773101066560,0.03,68509.0,68497.0,0.07299589]
[1773101067562,0.03148,68508.0,68498.0,0.02134516]
[1773101067926,0.03,68508.0,68498.0,0.02134516]
[1773101068131,0.00148,68507.0,68498.0,0.02134516]
[1773101068368,0.00148,68507.0,68497.0,0.07299589]
[1773101068369,0.00148,68507.0,68500.0,0.02134516]
[1773101068567,0.00148,68507.0,68501.0,0.09433679]
[1773101068768,0.00148,68507.0,68502.0,0.02134516]
[1773101068934,0.00148,68510.0,68502.0,0.02134516]
[1773101069746,0.03,68508.0,68499.0,0.07299163]
[1773101069956,0.03,68508.0,68500.0,0.07299163]
[1773101070586,0.03,68508.0,68499.0,0.07299163]
[1773101071184,0.03,68507.0,68499.0,0.07299163]
[1773101071699,0.03,68507.0,68496.0,0.07319642]
[1773101071902,0.03,68501.0,68490.0,0.07300229]
[1773101072238,0.03,68499.0,68490.0,0.07300229]
[1773101072375,0.03,68499.0,68491.0,0.02134516]
[1773101072575,0.03,68499.0,68493.0,0.02134516]
[1773101072995,0.03148,68498.0,68493.0,0.02134516]
[1773101073970,0.03148,68498.0,68492.0,0.07300122]
[1773101074114,0.03,68497.0,68492.0,0.07300122]
[1773101074553,0.03,68497.0,68494.0,0.07299909]
[1773101074755,0.03,68497.0,68489.0,0.14792232]
[1773101074756,0.03,68497.0,68490.0,0.07300335]
[1773101075068,0.03,68497.0,68491.0,0.07300152]
[1773101075277,0.00148,68498.0,68491.0,0.07300152]
[1773101077963,0.03,68497.0,68489.0,0.07320409]
[1773101078414,0.03,68497.0,68478.0,0.07321562]
[1773101078415,0.03,68493.0,68478.0,0.07321562]
[1773101078705,0.0481043,68491.0,68478.0,0.07321562]
[1773101078910,0.0481043,68491.0,68479.0,0.02134516]
[1773101078911,0.03,68491.0,68479.0,0.02134516]
[1773101079088,0.03,68491.0,68479.0,0.14761606]
[1773101079292,0.03,68491.0,68480.0,0.01749499]
[1773101079491,0.03,68490.0,68480.0,0.01749499]
[1773101080064,0.03,68490.0,68482.0,0.01749499]
[1773101080712,0.03,68489.0,68482.0,0.01749499]
[1773101081069,0.00148,68493.0,68482.0,0.01749499]
[1773101081270,0.07299388,68499.0,68484.0,0.01749499]
[1773101081488,0.00148,68498.0,68484.0,0.01749499]
[1773101081664,0.03148,68498.0,68484.0,0.01749499]
[1773101082730,0.10299589,68497.0,68485.0,0.09050367]
[1773101083115,0.10299589,68497.0,68486.0,0.01749499]
[1773101083319,0.1032159,68497.0,68486.0,0.01749499]
[1773101085226,0.1032159,68497.0,68487.0,0.07300655]
[1773101086063,0.03,68496.0,68487.0,0.07300655]
[1773101086685,0.03,68496.0,68487.0,0.07400655]
[1773101087057,0.00022001,68518.0,68487.0,0.07400655]
[1773101087253,0.11614629,68525.0,68500.0,0.17059507]
[1773101087254,0.03022001,68524.0,68500.0,0.17059507]
[1773101087458,0.03,68520.0,68501.0,0.21861531]
[1773101087661,0.03,68516.0,68502.0,0.00148]
[1773101087867,0.03,68513.0,68498.0,0.21861531]
[1773101088072,0.03,68509.0,68496.0,0.01760402]
[1773101088272,0.03,68509.0,68499.0,0.00148]
[1773101089105,0.03,68506.0,68497.0,0.00148]
[1773101089305,0.03,68504.0,68496.0,0.00148]
[1773101089450,0.0568431,68510.0,68496.0,0.00148]
[1773101089451,0.01783388,68512.0,68497.0,0.07299483]
[1773101090360,0.04609778,68511.0,68497.0,0.07299483]
[1773101090997,0.04609778,68511.0,68500.0,0.0568431]
[1773101091963,0.04609778,68511.0,68501.0,0.07299163]
[1773101092149,0.03,68510.0,68501.0,0.07299163]
[1773101092354,0.03,68510.0,68503.0,0.16557403]
[1773101092554,0.00022001,68509.0,68503.0,0.16557403]
[1773101092807,0.03,68507.0,68499.0,0.0729927]
[1773101093014,0.03,68505.0,68500.0,0.07447163]
[1773101093210,0.03,68505.0,68501.0,0.67299163]
[1773101094033,0.03,68504.0,68501.0,0.67299163]
[1773101094237,0.03,68502.0,68501.0,0.64436444]
[1773101095026,0.03,68502.0,68497.0,0.07299589]
[1773101095209,0.03,68500.0,68497.0,0.07299589]
[1773101096170,0.03,68502.0,68494.0,0.07299909]
[1773101098067,0.03,68502.0,68494.0,0.07399909]
[1773101098997,0.03,68498.0,68485.0,0.07320828]
[1773101099198,0.01765515,68493.0,68484.0,0.07163798]
[1773101099496,0.04765515,68488.0,68484.0,0.07163798]
[1773101099665,0.04765515,68488.0,68482.0,0.07321109]
[1773101100198,0.03,68488.0,68482.0,0.0002]
[1773101100752,0.03,68488.0,68487.0,0.0002]
[1773101101412,0.00148,68491.0,68487.0,0.0002]
[1773101101774,0.00148,68494.0,68488.0,0.16089835]
[1773101102092,0.00148,68498.0,68490.0,0.16089835]
[1773101102233,0.00148,68507.0,68492.0,0.16089835]
[1773101102434,0.00148,68507.0,68494.0,0.16089835]
[1773101103127,0.00148,68507.0,68494.0,0.16237835]
[1773101103335,0.00148,68507.0,68496.0,0.16089835]
[1773101103672,0.00148,68506.0,68496.0,0.16089835]
[1773101104410,0.00148,68506.0,68497.0,0.07299589]
[1773101105884,0.00148,68506.0,68498.0,0.16089835]
[1773101106084,0.00148,68506.0,68498.0,0.17850237]
[1773101106263,0.00148,68506.0,68499.0,0.07299376]
[1773101106469,0.03,68508.0,68500.0,0.16089835]
[1773101107107,0.00148,68509.0,68500.0,0.16089835]
[1773101107359,0.00148,68509.0,68500.0,0.17850237]
[1773101107842,0.00148,68509.0,68500.0,0.16089835]
[1773101107985,0.00170001,68509.0,68502.0,0.16089835]
[1773101108692,0.00170001,68509.0,68503.0,0.0729895]
[1773101109714,0.03170001,68509.0,68502.0,0.16089835]
[1773101110767,0.00170001,68509.0,68502.0,0.16089835]
[1773101111508,0.03,68507.0,68490.0,0.16089835]
[1773101111715,0.00170001,68509.0,68501.0,0.0002228]
[1773101111716,0.04704922,68503.0,68501.0,0.0002228]
[1773101111929,0.04704922,68503.0,68488.0,0.01865784]
[1773101111930,0.03,68497.0,68479.0,0.16237835]
[1773101112260,0.00022001,68509.0,68479.0,0.16237835]
[1773101112261,0.00148,68496.0,68495.0,0.0052753]
[1773101113674,0.03,68505.0,68495.0,0.0052753]
[1773101113836,0.00148,68504.0,68495.0,0.0052753]
[1773101114237,0.00148,68503.0,68492.0,0.16089835]
[1773101114485,0.03,68504.0,68492.0,0.10832443]
[1773101114657,0.00022001,68509.0,68504.0,0.0052753]
[1773101114862,0.00148,68508.0,68504.0,0.0052753]
[1773101115267,0.00148,68507.0,68504.0,0.0052753]
[1773101115459,0.00148,68507.0,68496.0,0.1531929]
[1773101115857,0.00148,68507.0,68498.0,0.1529929]
[1773101116058,0.00148,68507.0,68489.0,0.0002]
[1773101116059,0.03,68504.0,68489.0,0.0002]
[1773101116264,0.03,68500.0,68489.0,0.0002]
[1773101116469,0.00148,68499.0,68489.0,0.0002]
[1773101116683,0.00148,68499.0,68489.0,0.1531929]
[1773101119814,0.03,68498.0,68490.0,0.07300335]
[1773101121121,0.03,68497.0,68490.0,0.07300335]
[1773101122128,0.00148,68499.0,68490.0,0.07300335]
[1773101122129,0.03,68496.0,68490.0,0.07300335]
[1773101123111,0.00148,68499.0,68490.0,0.07300335]
[1773101127072,0.03,68498.0,68487.0,0.0002]
[1773101127280,0.07447378,68499.0,68471.0,1e-08]
[1773101127281,0.07300016,68493.0,68471.0,1e-08]
[1773101127536,0.03,68485.0,68471.0,1e-08]
[1773101127736,0.03,68479.0,68471.0,1e-08]
[1773101127986,0.00148,68478.0,68471.0,1e-08]
[1773101130131,0.03,68476.0,68471.0,1e-08]
[1773101130333,0.03,68476.0,68475.0,0.0002]
[1773101130953,0.03,68474.0,68471.0,1e-08]
[1773101131159,0.03,68474.0,68464.0,0.0002]
[1773101131371,0.03,68472.0,68464.0,0.0002]
[1773101131572,0.00148,68471.0,68464.0,0.0002]
[1773101132138,0.00148,68471.0,68464.0,0.07323104]
[1773101132281,0.10450369,68471.0,68464.0,0.0002]
[1773101133039,0.03148,68471.0,68464.0,0.0002]
[1773101133241,0.03148,68471.0,68464.0,0.1531929]
[1773101133650,0.03,68470.0,68464.0,0.1531929]
[1773101134015,0.03,68470.0,68466.0,0.14526587]
[1773101134222,0.00148,68469.0,68465.0,0.01865784]
[1773101134425,0.00148,68468.0,68467.0,0.16392371]
[1773101135271,0.07301655,68478.0,68465.0,0.07302929]
[1773101135475,0.00148,68477.0,68467.0,0.01865784]
[1773101135696,0.07300762,68486.0,68465.0,0.07302929]
[1773101135862,0.03,68485.0,68471.0,0.14526587]
[1773101136059,0.03148,68485.0,68474.0,0.01865784]
[1773101136262,0.03148,68485.0,68477.0,0.14526587]
[1773101136464,0.03148,68485.0,68477.0,0.09167404]
[1773101136666,0.03148,68485.0,68478.0,0.14526587]
[1773101137126,0.03148,68485.0,68478.0,0.16392371]
[1773101137327,0.03148,68485.0,68477.0,0.0730162]
[1773101137328,0.03,68484.0,68481.0,0.01865784]
[1773101137552,0.03,68484.0,68481.0,0.16392371]
[1773101137778,0.00148,68483.0,68481.0,0.16392371]
[1773101137974,0.00148,68483.0,68476.0,0.0730179]
[1773101138173,0.00148,68483.0,68476.0,4e-08]
[1773101138292,0.00148,68483.0,68466.0,0.07302864]
[1773101138293,0.03,68477.0,68467.0,0.07302788]
[1773101138496,0.00148,68476.0,68463.0,0.07303214]
[1773101138748,0.00148,68476.0,68465.0,0.14526587]
[1773101138896,0.00148,68476.0,68467.0,0.14526587]
[1773101139110,0.00148,68476.0,68468.0,0.01597334]
[1773101139314,0.07301309,68481.0,68463.0,0.07303214]
[1773101139315,0.00148,68475.0,68471.0,0.14526587]
[1773101139518,0.00148,68474.0,68465.0,0.01597334]
[1773101139717,0.00148,68474.0,68468.0,0.14526587]
[1773101139958,0.03,68480.0,68470.0,0.14526587]
[1773101140156,0.00148,68475.0,68472.0,0.14526587]
[1773101140369,0.03,68480.0,68474.0,0.16123921]
[1773101140569,0.03,68477.0,68474.0,0.16123921]
[1773101140778,0.03,68477.0,68470.0,0.08899723]
[1773101141072,0.00148,68476.0,68470.0,0.2342631]
[1773101142390,0.03148,68476.0,68470.0,0.2342631]
[1773101142587,0.03148,68476.0,68470.0,0.08899723]
[1773101142774,0.03148,68476.0,68472.0,0.01597334]
[1773101142943,0.03148,68476.0,68473.0,0.14526587]
[1773101143298,0.03148,68476.0,68473.0,0.16123921]
[1773101143454,0.03,68475.0,68473.0,0.16123921]
[1773101143855,0.03,68475.0,68474.0,0.01597334]
[1773101144057,0.00148,68476.0,68474.0,0.16123921]
[1773101144395,0.00148,68475.0,68474.0,0.16123921]
[1773101147100,0.00148,68475.0,68472.0,0.07302157]
[1773101147305,0.07300442,68489.0,68475.0,0.01597334]
[1773101147638,0.00148,68488.0,68479.0,0.16123921]
[1773101147850,0.03,68488.0,68479.0,0.16123921]
[1773101148055,0.03,68488.0,68479.0,0.14526587]
[1773101148230,0.00148,68487.0,68481.0,0.16123921]
[1773101148618,0.00148,68486.0,68481.0,0.14526587]
[1773101148820,0.00148,68486.0,68483.0,0.16123921]
[1773101149191,0.00148,68485.0,68475.0,0.07301935]
[1773101149487,0.00148,68485.0,68479.0,0.16123921]
[1773101149666,0.00148,68484.0,68479.0,0.14526587]
[1773101149869,0.00148,68484.0,68481.0,0.16123921]
[1773101150041,0.10300642,68488.0,68481.0,0.16123921]
[1773101150249,0.00148,68487.0,68481.0,0.16123921]
[1773101150830,0.00022001,68490.0,68481.0,0.14526587]
[1773101151054,0.00148,68489.0,68477.0,0.14526587]
[1773101151263,0.00148,68489.0,68483.0,0.01597334]
[1773101151428,0.00148,68489.0,68480.0,0.07301401]
[1773101151429,0.03,68494.0,68486.0,0.14526587]
[1773101151628,0.0013525,68491.0,68488.0,0.14526587]
[1773101151837,0.00148,68491.0,68490.0,0.16123921]
[1773101152720,0.00022001,68493.0,68490.0,0.16123921]
[1773101152897,0.00148,68491.0,68490.0,0.16123921]
[1773101154621,0.00148,68491.0,68488.0,0.07300446]
[1773101154819,0.00148,68491.0,68490.0,0.01371381]
[1773101155105,0.00148,68491.0,68490.0,0.152817]
[1773101155306,0.00148,68491.0,68488.0,0.22582146]
[1773101155512,0.00148,68491.0,68488.0,0.21210765]
[1773101155813,0.00148,68491.0,68488.0,0.07300446]
[1773101156826,0.00148,68491.0,68487.0,0.07300636]
[1773101158228,0.00148,68491.0,68486.0,0.21210987]
[1773101159779,0.00170001,68491.0,68486.0,0.22582368]
[1773101160490,0.00022001,68498.0,68486.0,0.07300668]
[1773101160668,0.00148,68497.0,68490.0,0.01371381]
[1773101160865,0.00148,68497.0,68492.0,0.01371381]
[1773101161102,0.00148,68497.0,68488.0,0.05686707]
[1773101161103,0.00148,68497.0,68494.0,0.13910319]
[1773101161250,0.00148,68497.0,68490.0,0.01371381]
[1773101161452,0.00148,68497.0,68494.0,0.13910319]
[1773101161677,0.00148,68497.0,68494.0,0.152817]
[1773101162402,0.07320845,68504.0,68494.0,0.152817]
[1773101162601,0.03148,68503.0,68497.0,0.01371381]
[1773101162818,0.03148,68503.0,68497.0,0.152817]
[1773101163006,0.03148,68503.0,68497.0,0.13910319]
[1773101163375,0.10299056,68502.0,68497.0,0.13910319]
[1773101163599,0.10299056,68502.0,68494.0,0.01371381]
[1773101163921,0.10299056,68502.0,68495.0,0.12136999]
[1773101166291,0.03,68502.0,68495.0,0.12136999]
[1773101166512,0.00022001,68506.0,68495.0,0.12136999]
[1773101166513,0.00048,68519.0,68497.0,0.01371381]
[1773101166710,0.00148,68515.0,68507.0,0.1350838]
[1773101166915,0.00148,68515.0,68502.0,0.12136999]
[1773101167278,0.00148,68515.0,68502.0,0.1350838]
[1773101167498,0.00148,68515.0,68505.0,0.05686707]
[1773101167696,0.00148,68515.0,68506.0,0.12136999]
[1773101167863,0.00148,68515.0,68509.0,0.01371381]
[1773101168068,0.00148,68515.0,68505.0,0.05686707]
[1773101168069,0.00148,68515.0,68512.0,0.12136999]
[1773101168270,0.00148,68515.0,68512.0,0.1350838]
[1773101168686,0.00148,68514.0,68513.0,0.1350838]
[1773101168894,0.00053846,68512.0,68493.0,0.12136999]
[1773101169068,0.03,68513.0,68502.0,0.01371381]
[1773101169302,0.03,68513.0,68500.0,0.11373414]
[1773101169303,0.00148,68512.0,68506.0,0.01322967]
[1773101169559,0.00148,68512.0,68509.0,0.12136999]
[1773101169710,0.03,68513.0,68509.0,0.13459966]
[1773101169919,0.00148,68511.0,68509.0,0.13459966]
[1773101170133,0.00074807,68509.0,68493.0,0.12236999]
[1773101170332,0.00074807,68509.0,68493.0,0.001]
[1773101170553,0.03,68507.0,68492.0,0.13459966]
[1773101172222,0.03,68507.0,68493.0,0.01322967]
[1773101172399,0.03,68507.0,68493.0,0.13459966]
[1773101174212,0.03,68505.0,68494.0,0.07299909]
[1773101174408,0.00148,68504.0,68494.0,0.07299909]
[1773101174867,0.00148,68504.0,68494.0,0.19436908]
[1773101176216,0.03,68502.0,68494.0,0.19436908]
[1773101176637,0.03,68502.0,68494.0,0.12136999]
[1773101177688,0.03,68502.0,68494.0,0.19436862]
[1773101178340,0.10299143,68502.0,68494.0,0.19436862]
[1773101181829,0.07109143,68502.0,68494.0,0.19436862]
[1773101183165,0.07109143,68502.0,68494.0,0.19456862]
[1773101186404,0.0729895,68503.0,68494.0,0.19456862]
[1773101186564,0.0729895,68503.0,68494.0,0.12156999]
[1773101187379,0.0729895,68503.0,68494.0,0.19456902]
[1773101187581,0.0729895,68503.0,68494.0,0.12156999]
[1773101188166,0.0729895,68503.0,68494.0,0.1945687]
[1773101188449,0.0729895,68503.0,68494.0,0.12156999]
[1773101190615,0.0729895,68503.0,68469.0,0.72892396]
[1773101190813,0.03,68499.0,68470.0,0.12259677]
[1773101191096,0.17535482,68499.0,68469.0,0.0002]
[1773101191735,0.00148,68498.0,68471.0,0.01322967]
[1773101191955,0.01404833,68495.0,68472.0,0.12259677]
[1773101192161,0.00260462,68493.0,68474.0,0.12259677]
[1773101192363,0.00260462,68491.0,68474.0,0.12259677]
[1773101192789,0.03260462,68489.0,68480.0,0.0002]
[1773101193198,0.03,68489.0,68480.0,0.0002]
[1773101193496,0.03,68489.0,68482.0,0.13582644]
[1773101193700,0.07300243,68491.0,68483.0,0.01322967]
[1773101193910,0.07300243,68491.0,68486.0,0.12259677]
[1773101193911,0.00148,68490.0,68486.0,0.12259677]
[1773101194064,0.001,68489.0,68481.0,0.12259677]
[1773101194431,0.00148,68488.0,68481.0,0.12230077]
[1773101194583,0.00148,68487.0,68481.0,0.01322967]
[1773101194751,0.00148,68487.0,68482.0,0.12170877]
[1773101194958,0.00148,68487.0,68485.0,0.01322967]
[1773101195184,0.00148,68487.0,68484.0,0.01322967]
[1773101195404,0.00148,68487.0,68486.0,0.13493844]
[1773101196152,0.0301971,68497.0,68481.0,0.07301295]
[1773101196377,0.00148,68496.0,68484.0,0.12166958]
[1773101196560,0.00148,68495.0,68482.0,0.12166958]
[1773101196710,0.00148,68495.0,68486.0,0.12166958]
[1773101196916,0.00148,68495.0,68489.0,0.01322967]
[1773101197111,0.00148,68495.0,68492.0,0.12166958]
[1773101197317,0.07319334,68497.0,68493.0,0.01322967]
[1773101197524,0.00148,68496.0,68494.0,0.01322967]
[1773101197720,0.00148,68496.0,68495.0,0.12166958]
[1773101198133,0.00733,68500.0,68497.0,0.13489925]
[1773101198357,0.00148,68499.0,68497.0,0.12166958]
[1773101198577,0.00148,68499.0,68497.0,0.13489925]
[1773101199472,0.00148,68498.0,68497.0,0.12166958]
[1773101199685,0.00148,68498.0,68494.0,0.13331917]
[1773101199905,0.00148,68497.0,68494.0,0.13331917]
[1773101200317,0.00148,68497.0,68495.0,0.12166958]
[1773101201782,0.03,68502.0,68497.0,0.13331917]
[1773101202021,0.00148,68501.0,68497.0,0.13331917]
[1773101202407,0.00022001,68507.0,68496.0,0.12166958]
[1773101202610,0.00148,68506.0,68499.0,0.01164959]
[1773101202975,0.00148,68506.0,68495.0,0.07299698]
[1773101203177,0.00148,68506.0,68494.0,0.07299886]
[1773101203585,0.00148,68506.0,68494.0,0.19466844]
[1773101204376,0.03,68504.0,68494.0,0.19466844]
[1773101206128,0.00022001,68501.0,68494.0,0.19466844]
[1773101206361,0.00148,68500.0,68494.0,0.19466844]
[1773101207250,0.03,68499.0,68492.0,0.07300097]
[1773101207448,0.0023727,68498.0,68482.0,0.01164959]
[1773101207651,0.03,68492.0,68470.0,0.0001971]
[1773101207878,0.0023727,68489.0,68474.0,0.12166958]
[1773101208080,0.00148,68488.0,68475.0,0.01164959]
[1773101208325,0.00148,68488.0,68476.0,0.12166958]
[1773101208680,0.03,68486.0,68478.0,0.05687679]
[1773101208842,0.03,68486.0,68480.0,0.12166958]
[1773101208996,0.00148,68485.0,68481.0,0.01164959]
[1773101209206,0.00148,68485.0,68482.0,0.12166958]
[1773101209409,0.03,68486.0,68482.0,0.12166958]
[1773101209612,0.00148,68485.0,68482.0,0.12166958]
[1773101209812,0.03,68486.0,68482.0,0.12166958]
[1773101209813,0.00148,68484.0,68482.0,0.12166958]
[1773101210013,0.001,68485.0,68483.0,0.12954968]
[1773101210227,0.001,68485.0,68483.0,0.11870323]
[1773101210228,0.00148,68484.0,68483.0,0.11870323]
[1773101210629,0.10448975,68484.0,68483.0,0.11870323]
[1773101210831,0.10448975,68484.0,68477.0,0.073017]
[1773101211055,0.10300975,68484.0,68477.0,0.073017]
[1773101211381,0.00148,68483.0,68477.0,0.073017]
[1773101211569,0.00148,68483.0,68477.0,0.19172023]
[1773101211868,0.00148,68483.0,68474.0,0.07301989]
[1773101212804,0.00148,68482.0,68476.0,0.11870323]
[1773101213006,0.00148,68481.0,68480.0,0.11870323]
[1773101213298,0.00148,68481.0,68477.0,0.11870323]
[1773101213429,0.00148,68481.0,68479.0,0.12954968]
[1773101213630,0.07299942,68494.0,68480.0,0.11870323]
[1773101213970,0.07299942,68494.0,68484.0,0.11870323]
[1773101214121,0.00023,68500.0,68474.0,0.07301989]
[1773101214122,0.00148,68493.0,68488.0,0.11870323]
[1773101214428,0.07299463,68499.0,68490.0,0.06983293]
[1773101214704,0.00022001,68495.0,68490.0,0.06511795]
[1773101214918,0.00022001,68495.0,68490.0,0.0759644]
[1773101215335,0.00148,68494.0,68491.0,0.12954968]
[1773101215720,0.00022001,68495.0,68491.0,0.12954968]
[1773101215920,0.00148,68494.0,68491.0,0.12954968]
[1773101217110,0.00148,68494.0,68481.0,0.12954968]
[1773101217111,0.07447926,68494.0,68481.0,0.12954968]
[1773101217462,0.07447926,68494.0,68482.0,0.01084645]
[1773101217758,0.07447926,68494.0,68482.0,0.12954968]
[1773101218143,0.00148,68493.0,68486.0,0.01084645]
[1773101218394,0.00148,68492.0,68482.0,0.11870323]
[1773101218603,0.00148,68492.0,68485.0,0.01084645]
[1773101218806,0.00148,68492.0,68487.0,0.01084645]
[1773101218981,0.00148,68492.0,68491.0,0.08384874]
[1773101219157,0.07299387,68499.0,68491.0,0.07300229]
[1773101219359,0.00148,68498.0,68491.0,0.20255197]
[1773101219563,0.00148,68497.0,68493.0,0.01084645]
[1773101219762,0.07299387,68499.0,68495.0,0.01084645]
[1773101219971,0.00148,68496.0,68493.0,0.01084645]
[1773101220172,0.00148,68496.0,68495.0,0.12954968]
[1773101220372,0.07322292,68500.0,68495.0,0.12954968]
[1773101220580,0.00148,68496.0,68495.0,0.12954968]
[1773101220731,0.00148,68496.0,68495.0,0.01084645]
[1773101220962,0.00148,68496.0,68495.0,0.12954968]
[1773101221160,0.07298935,68504.0,68497.0,0.01084645]
[1773101221401,0.07298935,68504.0,68498.0,0.11870323]
[1773101221402,0.00148,68503.0,68498.0,0.11870323]
[1773101221560,0.00148,68503.0,68498.0,0.12954968]
[1773101221772,0.07298935,68504.0,68498.0,0.11870323]
[1773101221973,0.00148,68503.0,68498.0,0.11870323]
[1773101222391,0.00148,68502.0,68498.0,0.11870323]
[1773101222983,0.00148,68502.0,68495.0,0.07299802]
[1773101223183,0.03,68501.0,68491.0,0.0730019]
[1773101223416,0.07973526,68500.0,68479.0,0.10673307]
[1773101223632,0.03,68494.0,68475.0,0.00043]
[1773101223839,9.19e-05,68491.0,68475.0,0.07344895]
[1773101224039,0.00148,68490.0,68475.0,0.00043]
[1773101224453,0.03,68489.0,68472.0,0.00562]
[1773101224682,0.10901615,68489.0,68472.0,0.00562]
[1773101225293,0.03,68487.0,68472.0,0.00562]
[1773101225742,0.03,68485.0,68468.0,0.0002]
[1773101225960,0.03,68481.0,68468.0,0.0002]
[1773101226917,0.10359914,68481.0,68468.0,0.0002]
[1773101227136,0.03,68480.0,68454.0,0.10673307]
[1773101227347,0.03,68474.0,68454.0,0.10673307]
[1773101227576,0.03,68472.0,68454.0,0.10673307]